bitfinex/quotes_SOLUSD_20240716
["timestamp","ask_amount","ask_price","bid_price","bid_amount"]
[1721123712883,19.13,155.32,155.3,16.4799]
[1721123713085,19.13,155.31,155.3,16.4799]
[1721123713708,25.5687,155.31,155.3,16.4799]
[1721123714215,6.4391,155.3,155.28,7.2170736]
[1721123714508,25.5691,155.3,155.28,7.2170736]
[1721123715200,6.4391,155.3,155.28,7.2170736]
[1721123715510,25.5691,155.3,155.28,7.2170736]
[1721123716425,6.4388,155.31,155.28,7.2170736]
[1721123716711,25.5688,155.31,155.28,7.2170736]
[1721123718227,6.4391,155.3,155.28,7.2170736]
[1721123718916,25.5691,155.3,155.29,0.33143259]
[1721123719116,25.5691,155.3,155.29,0.55972736]
[1721123719317,25.5691,155.3,155.29,1.28771847]
[1721123721416,6.4391,155.3,155.29,1.28771847]
[1721123721627,25.5691,155.3,155.29,1.28771847]
[1721123722212,6.4391,155.3,155.29,1.28771847]
[1721123722787,6.4395,155.29,155.28,0.8439736]
[1721123722991,25.5695,155.29,155.28,0.8439736]
[1721123723511,29.24702666,155.35,155.28,0.8439736]
[1721123723512,17.70461416,155.34,155.28,0.8439736]
[1721123723716,6.4393,155.3,155.28,0.8439736]
[1721123724220,25.5693,155.3,155.28,0.8439736]
[1721123724389,25.5695,155.29,155.28,0.8439736]
[1721123725105,25.5691,155.3,155.28,0.8439736]
[1721123725426,19.13,155.3,155.28,0.8439736]
[1721123725951,25.5691,155.3,155.28,0.8439736]
[1721123726123,25.5691,155.3,155.29,1.00019343]
[1721123727618,6.4395,155.29,155.28,0.8439736]
[1721123727923,25.5695,155.29,155.28,0.8439736]
[1721123728507,6.4395,155.29,155.28,0.8439736]
[1721123728707,25.5695,155.29,155.28,0.8439736]
[1721123728921,25.5895,155.29,155.28,0.8439736]
[1721123729124,6.4391,155.3,155.28,0.8439736]
[1721123729311,6.4391,155.3,155.29,0.17]
[1721123729509,25.5891,155.3,155.29,0.17]
[1721123730811,6.4391,155.3,155.29,0.17]
[1721123731009,1.60976524,155.35,155.29,19.5]
[1721123731210,6.437,155.36,155.32,19.15]
[1721123731432,6.4362,155.38,155.33,20.77722248]
[1721123731610,6.4364,155.37,155.33,20.77722248]
[1721123732215,6.4358,155.38,155.33,27.21502248]
[1721123732415,6.4358,155.38,155.34,19.15]
[1721123732629,6.4358,155.38,155.35,1.62701899]
[1721123732812,25.5854,155.4,155.36,1.28693614]
[1721123733005,16.0837,155.44,155.37,19.15]
[1721123733208,19.15,155.42,155.38,1.45674504]
[1721123733455,25.5844,155.42,155.38,1.45674504]
[1721123733612,19.15,155.42,155.38,1.45674504]
[1721123733807,24.38417145,155.47,155.38,1.45674504]
[1721123734005,19.15,155.42,155.38,1.45674504]
[1721123734236,6.4346,155.41,155.38,1.45674504]
[1721123734811,6.435,155.4,155.38,1.45674504]
[1721123735015,6.4346,155.41,155.38,1.45674504]
[1721123736019,1.60846434,155.46,155.38,0.17]
[1721123736020,6.435,155.4,155.38,0.17]
[1721123736314,6.435,155.4,155.38,0.34]
[1721123737845,6.4354,155.39,155.35,19.15]
[1721123738139,6.4359,155.38,155.34,21.8859]
[1721123738344,6.4364,155.37,155.34,21.8859]
[1721123738716,6.4369,155.36,155.34,21.8859]
[1721123738917,19.15,155.37,155.35,0.90450193]
[1721123739117,1.60892441,155.4,155.35,1.28718879]
[1721123739343,16.0875,155.41,155.35,1.28718879]
[1721123739344,19.15,155.38,155.35,1.28718879]
[1721123739649,6.4366,155.37,155.35,1.28718879]
[1721123741152,6.4364,155.37,155.35,1.28718879]
[1721123741321,19.15,155.37,155.34,22.0559]
[1721123741516,19.15,155.37,155.35,0.17]
[1721123742024,6.4366,155.36,155.35,0.17]
[1721123742221,6.437,155.35,155.34,15.513]
[1721123742422,6.437,155.35,155.33,0.17]
[1721123742727,19.15,155.34,155.32,0.34]
[1721123743129,6.4367,155.36,155.32,0.34]
[1721123743336,19.15,155.35,155.32,1.36088152]
[1721123743532,25.5867,155.36,155.32,7.79908152]
[1721123744243,6.697742,155.4,155.33,6.4377]
[1721123744432,19.15,155.37,155.34,0.34]
[1721123744634,25.5862,155.37,155.34,1.36086087]
[1721123745144,25.5862,155.37,155.34,0.34]
[1721123745343,17.13361978,155.41,155.33,0.34]
[1721123745344,25.5867,155.36,155.33,0.34]
[1721123745520,25.5867,155.36,155.32,0.34]
[1721123746645,19.15,155.35,155.32,0.34]
[1721123746841,25.5879,155.33,155.3,21.364]
[1721123747533,19.15,155.32,155.28,16.9434736]
[1721123747836,19.15,155.31,155.28,16.9434736]
[1721123748148,19.15,155.3,155.28,0.8439736]
[1721123748639,19.15,155.29,155.28,0.8439736]
[1721123749932,6.4392,155.3,155.28,0.8439736]
[1721123750147,19.15,155.29,155.28,0.8439736]
[1721123750447,25.5895,155.29,155.28,0.8439736]
[1721123753534,6.4395,155.29,155.28,0.8439736]
[1721123753842,25.5895,155.29,155.28,0.8439736]
[1721123754041,19.15,155.29,155.28,0.8439736]
[1721123754354,25.587,155.36,155.29,25.3446]
[1721123754555,25.587,155.36,155.31,41.6852]
[1721123754556,25.5867,155.36,155.31,41.6852]
[1721123754751,19.15,155.36,155.32,0.34]
[1721123755126,25.5865,155.37,155.32,25.9281]
[1721123755370,6.4365,155.37,155.32,25.9281]
[1721123755652,25.5865,155.37,155.32,25.9281]
[1721123755966,19.15,155.36,155.33,1.28721255]
[1721123756154,25.5867,155.36,155.33,1.28721255]
[1721123756355,6.4367,155.36,155.33,1.28721255]
[1721123756743,6.4372,155.35,155.33,1.28721255]
[1721123757057,6.4372,155.35,155.32,1.2873672]
[1721123757367,6.4372,155.35,155.33,1.2873405]
[1721123758228,6.4372,155.35,155.32,1.28733665]
[1721123758442,6.4372,155.35,155.33,1.28725377]
[1721123758833,6.4374,155.34,155.31,0.17]
[1721123759038,6.4374,155.34,155.3,0.34]
[1721123759465,1.60930683,155.38,155.31,6.4387]
[1721123759755,6.4366,155.36,155.32,1.28732321]
[1721123759964,6.4366,155.36,155.33,1.28731783]
[1721123760935,6.4371,155.35,155.3,22.8763]
[1721123761137,1.60930683,155.38,155.3,22.8763]
[1721123761138,6.4376,155.34,155.3,22.8763]
[1721123761663,6.4371,155.35,155.3,22.8763]
[1721123762351,6.4375,155.34,155.3,16.4373]
[1721123762555,6.4375,155.34,155.31,1.03082762]
[1721123763553,6.4367,155.36,155.31,1.03082762]
[1721123763755,6.4362,155.38,155.33,6.4377]
[1721123764068,6.4362,155.38,155.34,1.03062854]
[1721123764929,6.4364,155.37,155.34,1.03062854]
[1721123765229,6.4364,155.37,155.35,1.28719613]
[1721123765433,6.4364,155.37,155.32,22.8734]
[1721123765434,6.4364,155.37,155.33,1.28719667]
[1721123765653,6.4368,155.36,155.33,1.28719667]
[1721123765863,8.30708473,155.41,155.34,0.17]
[1721123766164,8.30708473,155.41,155.32,16.4353]
[1721123766362,8.30708473,155.41,155.32,22.8735]
[1721123766537,6.4367,155.36,155.32,22.8735]
[1721123768835,6.4363,155.37,155.32,22.8735]
[1721123770547,6.4351,155.4,155.35,6.4368]
[1721123770753,6.6980465,155.41,155.37,6.4362]
[1721123770960,1.60872861,155.43,155.38,1.28507794]
[1721123771467,1.60865091,155.42,155.36,0.34]
[1721123771671,16.5914,155.44,155.35,6.777]
[1721123771672,6.4354,155.39,155.35,6.777]
[1721123771861,6.435,155.4,155.35,6.777]
[1721123772170,6.4357,155.39,155.35,0.34]
[1721123772377,6.4357,155.39,155.36,1.28695526]
[1721123772540,6.4351,155.4,155.36,1.28695526]
[1721123772869,6.4351,155.4,155.35,6.777]
[1721123773664,6.4355,155.39,155.35,0.34]
[1721123774365,55.95366276,155.43,155.35,0.34]
[1721123774569,6.10122697,155.42,155.34,15.4922]
[1721123774737,1.60886225,155.42,155.34,15.4922]
[1721123775054,6.437,155.35,155.31,16.0964]
[1721123775257,6.438,155.33,155.29,21.5068]
[1721123775766,6.4374,155.35,155.29,21.5068]
[1721123776348,6.4371,155.35,155.3,22.5361]
[1721123776668,6.4375,155.34,155.3,22.5361]
[1721123776856,6.4375,155.34,155.31,0.34]
[1721123777058,6.4379,155.33,155.31,0.17]
[1721123777265,6.4379,155.33,155.3,0.17]
[1721123777465,6.4384,155.32,155.29,21.5068]
[1721123777669,6.4378,155.34,155.3,0.36374808]
[1721123778065,6.4378,155.34,155.3,0.70571843]
[1721123778874,6.4378,155.34,155.31,0.17]
[1721123779039,6.4378,155.34,155.31,1.04562755]
[1721123780679,6.4365,155.37,155.32,0.99169756]
[1721123780850,6.4359,155.38,155.33,7.76943371]
[1721123781778,6.4362,155.37,155.33,7.76943371]
[1721123782069,6.4362,155.37,155.34,1.1569208]
[1721123782278,6.4367,155.36,155.33,0.34]
[1721123782479,16.0903,155.38,155.29,27.9461]
[1721123782678,6.4382,155.33,155.29,21.5068]
[1721123782882,54.3545,155.34,155.28,0.8439736]
[1721123783187,6.4395,155.29,155.28,0.8439736]
[1721123786277,6.4392,155.3,155.28,0.8439736]
[1721123786486,39.86990311,155.31,155.28,0.8439736]
[1721123786687,4.49777193,155.3,155.28,0.8439736]
[1721123786984,8.04932051,155.29,155.28,0.8439736]
[1721123787188,6.4395,155.29,155.28,0.8439736]
[1721123789672,38.26,155.31,155.28,0.8439736]
[1721123789854,1.60964089,155.34,155.28,0.8439736]
[1721123790052,4.49702313,155.33,155.28,0.8439736]
[1721123790252,39.86964089,155.34,155.28,0.8439736]
[1721123790470,6.4395,155.29,155.28,0.8439736]
[1721123790987,44.6995,155.29,155.28,7.36e-05]
[1721123791180,50.80788657,155.29,155.28,7.36e-05]
[1721123791478,46.30968577,155.29,155.28,7.36e-05]
[1721123791654,57.50818918,155.29,155.28,7.36e-05]
[1721123794480,63.00926441,155.29,155.28,7.36e-05]
[1721123796491,6.4423,155.23,155.17,15.0406]
[1721123796785,6.4423,155.23,155.19,6.4436]
[1721123796957,6.4423,155.23,155.18,6.614]
[1721123797380,6.4423,155.23,155.18,0.17]
[1721123797381,6.4424,155.23,155.18,0.17]
[1721123797584,6.4428,155.22,155.18,0.61266115]
[1721123798088,6.4428,155.22,155.18,0.17]
[1721123798385,6.4429,155.21,155.18,0.34]
[1721123798687,38.26,155.25,155.19,0.4672264]
[1721123798865,38.26,155.25,155.2,0.34]
[1721123799066,38.26,155.25,155.21,0.46744513]
[1721123799067,6.4416,155.24,155.21,0.46744513]
[1721123799685,6.4421,155.23,155.21,0.46744513]
[1721123799873,6.4421,155.23,155.2,0.34]
[1721123800185,6.4429,155.21,155.19,0.34]
[1721123800366,6.4429,155.21,155.18,0.34]
[1721123800781,6.4433,155.2,155.17,15.0406]
[1721123800985,38.26,155.22,155.17,15.0406]
[1721123801280,38.26,155.22,155.18,1.2886886]
[1721123801595,6.4436,155.2,155.17,15.0406]
[1721123802198,6.4437,155.19,155.17,15.0406]
[1721123802765,6.4441,155.18,155.17,15.0406]
[1721123803075,6.4441,155.18,155.16,6.158]
[1721123803379,6.4445,155.17,155.16,6.158]
[1721123803683,6.4445,155.17,155.13,16.0002]
[1721123803862,6.4442,155.18,155.13,22.4463]
[1721123804292,6.4453,155.15,155.13,16.0002]
[1721123804482,1.61123583,155.21,155.14,16.1139]
[1721123804666,6.4434,155.2,155.16,6.4449]
[1721123804871,6.4426,155.22,155.17,16.1109]
[1721123805184,6.4419,155.24,155.19,22.5517]
[1721123805388,15.8527,155.27,155.19,16.1084]
[1721123805389,6.4421,155.23,155.19,16.1084]
[1721123805601,38.26,155.25,155.18,6.444]
[1721123805776,6.4421,155.23,155.19,6.7836]
[1721123806101,6.4417,155.24,155.19,6.7836]
[1721123806589,6.4425,155.22,155.19,0.34]
[1721123807182,6.4431,155.21,155.19,0.17]
[1721123807393,6.4431,155.21,155.18,6.2071]
[1721123807801,6.4425,155.22,155.18,6.2071]
[1721123808502,38.26,155.25,155.19,0.17]
[1721123808683,6.4425,155.22,155.19,0.34]
[1721123810104,38.26,155.25,155.19,0.34]
[1721123810395,6.4425,155.22,155.19,0.34]
[1721123810968,39.87044573,155.25,155.18,6.2071]
[1721123811171,6.443,155.21,155.18,6.2071]
[1721123811794,39.87044573,155.25,155.19,0.32877575]
[1721123811795,6.4424,155.22,155.19,0.32877575]
[1721123812002,6.4424,155.22,155.18,6.2071]
[1721123812176,6.4433,155.2,155.18,6.2071]
[1721123813203,6.4429,155.21,155.18,6.2071]
[1721123813689,6.4434,155.2,155.18,6.2071]
[1721123813890,6.4428,155.22,155.19,0.17]
[1721123814102,6.4421,155.23,155.19,0.34]
[1721123814390,6.4421,155.23,155.19,6.7836]
[1721123814695,38.26,155.25,155.2,1.28637195]
[1721123814900,46.56907502,155.28,155.21,0.17]
[1721123815111,44.95860046,155.28,155.21,1.62628907]
[1721123815397,6.44,155.28,155.23,6.442]
[1721123815604,6.44,155.28,155.24,1.62799164]
[1721123816693,6.4404,155.27,155.24,1.62799164]
[1721123818317,39.86994792,155.31,155.25,21.8754]
[1721123818606,6.439,155.31,155.26,0.34]
[1721123819104,39.86998243,155.34,155.27,1.28767974]
[1721123819305,44.6978,155.34,155.28,6.7798]
[1721123819482,6.4382,155.33,155.29,1.28751426]
[1721123819800,38.26,155.34,155.3,1.45743135]
[1721123820104,44.6975,155.34,155.3,1.28743135]
[1721123820280,6.4379,155.33,155.3,1.28743135]
[1721123820699,6.4384,155.32,155.3,1.28743135]
[1721123821014,6.4388,155.31,155.28,0.34]
[1721123821401,6.4391,155.3,155.28,0.34]
[1721123821577,6.4391,155.3,155.27,0.34]
[1721123821897,38.26,155.34,155.28,0.34]
[1721123821898,6.4387,155.31,155.28,0.34]
[1721123822099,6.4387,155.31,155.26,26.1107]
[1721123823377,6.4383,155.32,155.27,6.4403]
[1721123823596,44.6978,155.34,155.28,0.34]
[1721123823789,6.4379,155.33,155.29,6.4392]
[1721123823981,38.26,155.34,155.3,6.439]
[1721123824179,38.26,155.37,155.31,0.34]
[1721123824408,6.4367,155.36,155.31,6.7786]
[1721123824803,6.4371,155.35,155.31,0.34]
[1721123825179,44.9954086,155.4,155.33,6.4378]
[1721123825397,44.9954086,155.4,155.34,0.34]
[1721123825598,38.26,155.4,155.34,0.34]
[1721123825991,38.26,155.4,155.35,6.437]
[1721123826196,38.26,155.4,155.34,6.6074]
[1721123826197,39.86893681,155.4,155.34,6.6074]
[1721123826394,6.4358,155.38,155.34,0.17]
[1721123827093,6.73464676,155.41,155.34,6.6074]
[1721123827611,6.73464676,155.41,155.35,6.4368]
[1721123827906,6.4359,155.38,155.34,0.17]
[1721123828313,6.4358,155.39,155.33,0.34]
[1721123828481,6.4358,155.39,155.33,1.62698586]
[1721123829209,6.436,155.38,155.33,1.62698586]
[1721123829397,6.436,155.38,155.33,8.06478586]
[1721123831593,6.4366,155.36,155.33,0.34]
[1721123831816,1.60884151,155.42,155.33,0.17]
[1721123831817,6.4371,155.35,155.33,0.17]
[1721123832100,54.3474,155.41,155.31,21.8241]
[1721123832101,6.4383,155.32,155.31,21.8241]
[1721123832301,6.4383,155.32,155.27,21.8748]
[1721123832503,6.4389,155.31,155.27,15.4345]
[1721123832707,6.4391,155.3,155.27,15.4345]
[1721123833510,1.60952205,155.34,155.23,37.981]
[1721123833511,38.26,155.32,155.23,37.981]
[1721123833720,1.60987898,155.31,155.23,37.981]
[1721123833900,1.60987898,155.31,155.24,6.4415]
[1721123834111,6.4389,155.31,155.26,6.4405]
[1721123834310,1.60974974,155.3,155.23,15.4345]
[1721123834483,6.4404,155.27,155.23,15.4345]
[1721123834689,6.4408,155.26,155.23,15.4345]
[1721123835109,6.4408,155.26,155.22,6.1262]
[1721123835314,6.4412,155.25,155.22,6.1262]
[1721123835489,6.4408,155.26,155.22,6.1262]
[1721123835891,8.05040661,155.28,155.22,12.5684]
[1721123836111,6.4403,155.28,155.23,7.73011293]
[1721123836908,6.4403,155.28,155.24,0.17]
[1721123837917,39.87014116,155.32,155.24,16.444]
[1721123838230,39.87014116,155.32,155.24,0.17]
[1721123838544,6.44,155.28,155.23,6.782]
[1721123838714,39.87014116,155.32,155.23,6.782]
[1721123838715,6.4396,155.29,155.24,7.72935728]
[1721123839018,6.4392,155.3,155.25,6.7812]
[1721123839192,6.4402,155.28,155.25,0.17]
[1721123839396,6.4405,155.27,155.24,0.34]
[1721123840510,6.4399,155.28,155.24,0.34]
[1721123840905,6.4399,155.28,155.24,8.06951075]
[1721123842117,6.4407,155.27,155.24,1.62801075]
[1721123842417,6.4407,155.27,155.24,0.34]
[1721123842821,6.44,155.28,155.24,0.34]
[1721123843312,6.4395,155.3,155.24,0.34]
[1721123843530,6.4395,155.3,155.26,6.4407]
[1721123843904,39.87004595,155.32,155.26,6.4407]
[1721123844214,6.439,155.31,155.26,6.4407]
[1721123844421,16.0943,155.34,155.27,1.45779066]
[1721123844717,38.26,155.32,155.22,22.2319]
[1721123844927,6.4404,155.27,155.23,0.34]
[1721123845901,6.4404,155.27,155.23,6.782]
[1721123846422,6.44,155.28,155.24,6.4416]
[1721123846603,6.44,155.28,155.25,0.34]
[1721123846808,44.6996,155.29,155.25,0.34]
[1721123847711,44.6996,155.29,155.25,6.7812]
[1721123848117,38.26,155.29,155.26,6.4407]
[1721123848323,38.26,155.29,155.27,0.34]
[1721123848524,44.6996,155.29,155.27,0.34]
[1721123848704,6.4392,155.3,155.27,0.34]
[1721123849021,6.4392,155.3,155.26,6.7806]
[1721123849198,6.4396,155.29,155.26,0.34]
[1721123849598,8.0488821,155.31,155.25,6.7811]
[1721123849821,8.0488821,155.31,155.25,0.34]
[1721123850204,8.0488821,155.31,155.26,6.4406]
[1721123850514,8.0488821,155.31,155.27,1.23466162]
[1721123850825,22.83051435,155.35,155.27,1.62790417]
[1721123850826,38.26,155.34,155.27,1.62790417]
[1721123851003,6.4383,155.32,155.27,8.06820417]
[1721123851203,6.4388,155.31,155.27,0.34]
[1721123851402,6.4392,155.3,155.27,0.34]
[1721123852108,6.4388,155.31,155.27,0.34]
[1721123852307,6.4384,155.32,155.27,7.14007534]
[1721123853511,1.60973286,155.33,155.27,0.69987534]
[1721123853718,1.60973286,155.33,155.27,0.34]
[1721123854031,6.4392,155.3,155.27,0.34]
[1721123855600,17.70503286,155.33,155.27,0.34]
[1721123855801,17.70503286,155.33,155.27,0.17]
[1721123855802,6.4399,155.28,155.27,0.17]
[1721123856027,1.60992231,155.3,155.23,22.5465]
[1721123856228,1.61006602,155.29,155.23,22.5465]
[1721123856429,1.61007546,155.3,155.23,22.5465]
[1721123856619,1.61004625,155.29,155.24,6.4415]
[1721123856825,6.4402,155.28,155.24,6.4415]
[1721123857939,1.61004049,155.3,155.23,16.1046]
[1721123858243,6.4415,155.25,155.21,21.7178]
[1721123858563,38.26,155.28,155.22,6.4423]
[1721123858564,6.4409,155.26,155.22,6.4423]
[1721123858710,38.26,155.28,155.22,16.1051]
[1721123858914,6.4409,155.26,155.22,16.1051]
[1721123859120,1.61019371,155.27,155.22,16.1051]
[1721123859121,6.4412,155.25,155.22,16.1051]
[1721123859331,38.26,155.28,155.22,16.1051]
[1721123859640,8.05007099,155.29,155.24,22.5451]
[1721123859848,1.61017099,155.29,155.25,1.62766282]
[1721123860019,1.6101477,155.3,155.25,1.62766282]
[1721123860409,8.0493477,155.3,155.25,8.06856282]
[1721123860612,6.4396,155.29,155.25,8.06856282]
[1721123861237,6.4392,155.3,155.26,6.4407]
[1721123861446,6.4392,155.3,155.27,1.45791801]
[1721123861746,6.4397,155.29,155.27,0.17]
[1721123862051,6.4399,155.28,155.27,0.17]
[1721123862537,6.4396,155.29,155.27,0.17]
[1721123862718,6.4396,155.29,155.26,1.45797078]
[1721123866351,6.4401,155.28,155.26,0.17]
[1721123866523,6.4401,155.28,155.25,0.34]
[1721123868570,38.26,155.31,155.25,0.34]
[1721123868754,38.26,155.31,155.26,16.1015]
[1721123869053,44.6988,155.31,155.27,8.06778514]
[1721123869252,6.4388,155.31,155.27,8.06778514]
[1721123869455,6.4388,155.31,155.27,1.62778514]
[1721123869827,6.4392,155.3,155.27,1.62778514]
[1721123870651,6.4388,155.31,155.27,1.62778514]
[1721123871243,6.4396,155.29,155.25,6.0329]
[1721123871428,6.4396,155.29,155.25,12.4739]
[1721123871637,6.4391,155.3,155.26,7.7286658]
[1721123871862,6.4388,155.31,155.26,7.7286658]
[1721123872156,6.4388,155.31,155.27,6.4403]
[1721123872529,6.4388,155.31,155.28,0.34]
[1721123872733,6.4392,155.3,155.28,0.34]
[1721123872948,6.4392,155.3,155.29,0.17]
[1721123873160,6.4392,155.3,155.27,0.34]
[1721123873857,6.4388,155.31,155.27,0.34]
[1721123874061,6.4388,155.31,155.27,6.7802]
[1721123876263,6.4388,155.31,155.28,0.9552684]
[1721123876467,6.4388,155.31,155.29,0.17]
[1721123876652,6.4391,155.3,155.27,0.34]
[1721123876843,6.4391,155.3,155.28,0.17]
[1721123877678,6.4391,155.3,155.27,0.34]
[1721123877975,6.4388,155.31,155.27,0.17]
[1721123879169,6.4388,155.31,155.27,6.6103]
[1721123879352,6.4388,155.31,155.27,0.17]
[1721123879556,6.4388,155.31,155.26,8.06847209]
[1721123879854,6.4383,155.32,155.27,17.3884711]
[1721123880170,6.4383,155.32,155.28,0.17]
[1721123880350,6.4383,155.32,155.28,6.6098]
[1721123880670,6.4388,155.31,155.29,1.28774539]
[1721123880845,6.4388,155.31,155.28,0.17]
[1721123881246,8.34747704,155.35,155.31,16.0959]
[1721123881455,6.4366,155.36,155.32,6.84937289]
[1721123881672,39.86947018,155.38,155.32,0.41107289]
[1721123881673,10.93091369,155.35,155.32,0.41107289]
[1721123881980,6.4372,155.35,155.32,1.28745701]
[1721123884341,6.4375,155.34,155.31,16.0959]
[1721123885567,6.4372,155.35,155.31,22.5345]
[1721123886367,1.60932127,155.37,155.32,0.3422703]
[1721123886577,6.4365,155.37,155.33,6.4377]
[1721123886742,6.4365,155.37,155.33,7.72506103]
[1721123887253,46.30518961,155.38,155.33,7.72506103]
[1721123887458,4.49392193,155.37,155.33,7.72506103]
[1721123887670,46.30518961,155.38,155.33,7.72506103]
[1721123887869,10.93025654,155.37,155.33,7.72506103]
[1721123888065,6.4363,155.37,155.33,1.28736103]
[1721123888277,6.4366,155.36,155.32,6.6081]
[1721123888596,6.4363,155.37,155.32,6.6081]
[1721123888762,44.6959,155.38,155.33,17.38163349]
[1721123888947,44.6959,155.38,155.34,0.17]
[1721123889148,9.11267818,155.42,155.34,1.45729042]
[1721123889372,6.4351,155.4,155.35,6.6067]
[1721123889571,6.4354,155.39,155.36,0.17]
[1721123889952,8.04376975,155.41,155.36,6.6066]
[1721123890183,10.92768934,155.4,155.36,6.6066]
[1721123890359,6.435,155.4,155.36,6.6066]
[1721123890550,6.4354,155.39,155.36,0.17]
[1721123890751,6.4366,155.37,155.32,22.5331]
[1721123890959,8.04586994,155.36,155.32,22.5331]
[1721123891156,1.60916994,155.36,155.32,16.095]
[1721123891367,6.4373,155.35,155.31,27.6395]
[1721123891664,6.4373,155.35,155.31,21.201]
[1721123891976,6.4373,155.35,155.31,27.6397]
[1721123893178,1.60944993,155.34,155.31,6.4387]
[1721123893479,38.26,155.38,155.31,6.4387]
[1721123893654,6.4371,155.35,155.31,6.4387]
[1721123893848,1.60949738,155.34,155.31,6.4387]
[1721123894348,1.60949776,155.35,155.31,6.4387]
[1721123894553,1.60949776,155.35,155.32,6.4382]
[1721123894754,6.4375,155.34,155.3,6.4388]
[1721123894957,8.04756546,155.33,155.29,22.5378]
[1721123895189,1.60972314,155.32,155.29,22.5378]
[1721123895993,8.04802314,155.32,155.29,16.0984]
[1721123896197,1.60983748,155.34,155.29,16.0984]
[1721123896490,1.60983748,155.34,155.31,6.4384]
[1721123896863,1.60983748,155.34,155.3,6.439]
[1721123897074,8.04733748,155.34,155.29,22.5378]
[1721123897383,6.4379,155.33,155.29,22.5378]
[1721123897565,1.60977869,155.32,155.3,6.4391]
[1721123898609,1.60977916,155.33,155.3,6.4391]
[1721123898788,1.60977966,155.32,155.29,22.5378]
[1721123898989,1.60977966,155.33,155.29,22.5378]
[1721123899180,1.60977994,155.32,155.29,22.5378]
[1721123899485,1.60977994,155.33,155.3,6.439]
[1721123899687,1.60978051,155.32,155.3,6.439]
[1721123899895,1.60978051,155.33,155.3,6.439]
[1721123900100,1.60978103,155.32,155.29,22.5379]
[1721123900267,8.04808103,155.32,155.29,16.0984]
[1721123900469,1.60978103,155.32,155.29,16.0984]
[1721123900671,1.60978103,155.32,155.29,22.5378]
[1721123904168,1.60978574,155.33,155.3,6.439]
[1721123904370,19.14,155.31,155.3,6.439]
[1721123905087,8.04708518,155.35,155.3,6.439]
[1721123905287,19.14,155.31,155.3,6.439]
[1721123905872,1.60972161,155.33,155.3,6.439]
[1721123906067,19.14,155.31,155.3,6.439]
[1721123908680,19.14,155.31,155.3,6.609]
[1721123908879,19.14,155.31,155.29,22.5378]
[1721123909071,19.14,155.3,155.29,22.5378]
[1721123909270,19.14,155.3,155.29,22.7078]
[1721123910189,6.4375,155.34,155.3,6.4391]
[1721123910391,19.14,155.31,155.3,7.72678718]
[1721123910583,19.14,155.31,155.3,6.6091]
[1721123911097,8.04682216,155.35,155.31,6.4387]
[1721123911393,19.14,155.32,155.27,22.1535]
[1721123911590,19.14,155.3,155.28,6.6098]
[1721123911898,6.4386,155.32,155.28,6.6098]
[1721123912070,19.14,155.3,155.28,6.6098]
[1721123913186,19.14,155.3,155.28,0.17]
[1721123913393,19.14,155.3,155.29,6.4395]
[1721123913569,19.14,155.3,155.29,6.6095]
[1721123913773,19.14,155.31,155.29,6.6095]
[1721123913980,19.14,155.3,155.29,7.89724479]
[1721123914202,19.14,155.3,155.29,6.6095]
[1721123914701,1.60973282,155.33,155.29,6.6095]
[1721123914901,19.14,155.3,155.29,6.6095]
[1721123915274,19.14,155.3,155.29,0.17]
[1721123915483,19.14,155.3,155.28,16.0994]
[1721123915776,19.14,155.29,155.28,16.0994]
[1721123915980,19.14,155.29,155.28,16.2694]